[Event "Late-Titled-Tuesday-Blitz-October-17-2023"]
[Site "Chess.com"]
[Date "2023.10.17"]
[Round "11"]
[White "johnmez"]
[Black "HouseOfDurin"]
[Result "0-1"]
[WhiteElo "2294"]
[BlackElo "2289"]
[TimeControl "180+1"]
[EndTime "16:01:49 PDT"]
[Termination "HouseOfDurin won on time"]

1. d4 {[%clk 0:03:00.9]} 1... Nf6 {[%clk 0:02:59.5]} 2. c4 {[%clk 0:03:00.6]}
2... c5 {[%clk 0:03:00.1]} 3. d5 {[%clk 0:02:59.9]} 3... b5 {[%clk 0:03:00.7]}
4. a4 {[%clk 0:02:58.6]} 4... bxc4 {[%clk 0:03:00.3]} 5. Nc3 {[%clk 0:02:57.5]}
5... d6 {[%clk 0:03:00.1]} 6. e4 {[%clk 0:02:57.4]} 6... Nbd7 {[%clk 0:03:00.1]}
7. Bxc4 {[%clk 0:02:56.3]} 7... g6 {[%clk 0:03:00]} 8. f4 {[%clk 0:02:48.3]}
8... Bg7 {[%clk 0:02:48.6]} 9. Nf3 {[%clk 0:02:47.3]} 9... Qa5 {[%clk
0:02:48.2]} 10. Bd2 {[%clk 0:01:53.3]} 10... Ba6 {[%clk 0:02:47.5]} 11. Nb5
{[%clk 0:01:49.5]} 11... Qb6 {[%clk 0:02:47.3]} 12. Qe2 {[%clk 0:01:41.8]} 12...
O-O {[%clk 0:02:38.5]} 13. O-O {[%clk 0:01:39.6]} 13... Bxb5 {[%clk 0:02:36.3]}
14. axb5 {[%clk 0:01:39.7]} 14... Qb7 {[%clk 0:02:26.4]} 15. Bc3 {[%clk
0:01:38]} 15... Nb6 {[%clk 0:02:25.5]} 16. Bd3 {[%clk 0:01:34.2]} 16... c4
{[%clk 0:01:59.5]} 17. Bxc4 {[%clk 0:01:28.1]} 17... Nxc4 {[%clk 0:02:00.4]} 18.
Qxc4 {[%clk 0:01:27.5]} 18... Rfc8 {[%clk 0:02:01.1]} 19. Qd3 {[%clk 0:01:11.8]}
19... Rc5 {[%clk 0:01:54]} 20. Ra5 {[%clk 0:01:09.6]} 20... Rac8 {[%clk
0:01:25.8]} 21. Bd4 {[%clk 0:01:05.3]} 21... Nxd5 {[%clk 0:00:52.6]} 22. Bxc5
{[%clk 0:00:34.7]} 22... Nxf4 {[%clk 0:00:51.6]} 23. Qe3 {[%clk 0:00:34.1]}
23... Rxc5 {[%clk 0:00:37.3]} 24. Qxf4 {[%clk 0:00:33.8]} 24... Qb6 {[%clk
0:00:37.6]} 25. Ra6 {[%clk 0:00:32.3]} 25... Qxb5 {[%clk 0:00:34.9]} 26. Rxa7
{[%clk 0:00:29.9]} 26... Rc8 {[%clk 0:00:16.1]} 27. Rxe7 {[%clk 0:00:27.6]}
27... Rf8 {[%clk 0:00:09.1]} 28. h3 {[%clk 0:00:21.3]} 28... d5 {[%clk
0:00:08.8]} 29. e5 {[%clk 0:00:19.3]} 29... Qc5+ {[%clk 0:00:08.7]} 30. Kh1
{[%clk 0:00:17.5]} 30... Qxe7 {[%clk 0:00:09.6]} 31. Qd4 {[%clk 0:00:14.8]}
31... Qe6 {[%clk 0:00:07.6]} 32. Rd1 {[%clk 0:00:13.7]} 32... Rd8 {[%clk
0:00:07.5]} 33. b4 {[%clk 0:00:12.9]} 33... h6 {[%clk 0:00:07.4]} 34. b5 {[%clk
0:00:12.7]} 34... Kh7 {[%clk 0:00:05.2]} 35. b6 {[%clk 0:00:11.6]} 35... Rb8
{[%clk 0:00:04.7]} 36. Rb1 {[%clk 0:00:11.8]} 36... Qc6 {[%clk 0:00:04.4]} 37.
Qb4 {[%clk 0:00:09.1]} 37... Rb7 {[%clk 0:00:04.3]} 38. Qb5 {[%clk 0:00:08.5]}
38... Qxb5 {[%clk 0:00:03.9]} 39. Rxb5 {[%clk 0:00:09.4]} 39... Bf8 {[%clk
0:00:02.8]} 40. Nd4 {[%clk 0:00:08.5]} 40... Be7 {[%clk 0:00:02.4]} 41. Rxd5
{[%clk 0:00:08]} 41... Rxb6 {[%clk 0:00:02.4]} 42. Rd7 {[%clk 0:00:07.9]} 42...
Bc5 {[%clk 0:00:02]} 43. Nf3 {[%clk 0:00:05.3]} 43... Rb1+ {[%clk 0:00:01.5]}
44. Kh2 {[%clk 0:00:04.9]} 44... Be3 {[%clk 0:00:02.3]} 45. Rxf7+ {[%clk
0:00:04.3]} 45... Kg8 {[%clk 0:00:02.9]} 46. Rf6 {[%clk 0:00:03.2]} 46... Kg7
{[%clk 0:00:01.7]} 47. Kg3 {[%clk 0:00:01.9]} 47... Rb4 {[%clk 0:00:01.9]} 48.
Re6 {[%clk 0:00:01.4]} 48... g5 {[%clk 0:00:02.3]} 0-1

[Event "Late-Titled-Tuesday-Blitz-October-17-2023"]
[Site "Chess.com"]
[Date "2023.10.17"]
[Round "11"]
[White "krzyzan94"]
[Black "karinachess1"]
[Result "0-1"]
[WhiteElo "2769"]
[BlackElo "2637"]
[TimeControl "180+1"]
[EndTime "16:01:53 PDT"]
[Termination "karinachess1 won on time"]

1. e4 {[%clk 0:03:00.9]} 1... e5 {[%clk 0:02:59.9]} 2. Nf3 {[%clk 0:02:57.9]}
2... Nc6 {[%clk 0:02:59.9]} 3. Bb5 {[%clk 0:02:55.9]} 3... Nf6 {[%clk
0:02:59.6]} 4. d3 {[%clk 0:02:53.1]} 4... d6 {[%clk 0:02:59.3]} 5. c3 {[%clk
0:02:50.7]} 5... Bd7 {[%clk 0:02:58.6]} 6. O-O {[%clk 0:02:49.6]} 6... g6 {[%clk
0:02:58.5]} 7. d4 {[%clk 0:02:46.9]} 7... Bg7 {[%clk 0:02:55.1]} 8. d5 {[%clk
0:02:46.4]} 8... Ne7 {[%clk 0:02:52.5]} 9. Bxd7+ {[%clk 0:02:46.5]} 9... Qxd7
{[%clk 0:02:51.5]} 10. Re1 {[%clk 0:02:44.8]} 10... O-O {[%clk 0:02:45.8]} 11.
c4 {[%clk 0:02:44.9]} 11... c6 {[%clk 0:02:45]} 12. Nc3 {[%clk 0:02:44.5]} 12...
a6 {[%clk 0:02:32.4]} 13. a4 {[%clk 0:02:40.4]} 13... c5 {[%clk 0:02:22.6]} 14.
a5 {[%clk 0:02:33.2]} 14... Kh8 {[%clk 0:02:09]} 15. h3 {[%clk 0:02:31.4]} 15...
Nh5 {[%clk 0:01:59.8]} 16. Na4 {[%clk 0:02:24.2]} 16... Qc7 {[%clk 0:01:57.4]}
17. Bd2 {[%clk 0:02:22.7]} 17... Rad8 {[%clk 0:01:51]} 18. Ra3 {[%clk
0:02:22.9]} 18... h6 {[%clk 0:01:41.5]} 19. b4 {[%clk 0:02:22.9]} 19... cxb4
{[%clk 0:01:38.4]} 20. Bxb4 {[%clk 0:02:23.8]} 20... Qxc4 {[%clk 0:01:36.6]} 21.
Qb1 {[%clk 0:02:14.1]} 21... Nf4 {[%clk 0:01:29.3]} 22. Bd2 {[%clk 0:02:02.8]}
22... Ne2+ {[%clk 0:01:15.2]} 23. Kh2 {[%clk 0:02:00.6]} 23... Nd4 {[%clk
0:01:07]} 24. Nxd4 {[%clk 0:01:40.6]} 24... exd4 {[%clk 0:01:01.3]} 25. Qxb7
{[%clk 0:01:38.5]} 25... Ng8 {[%clk 0:00:53.1]} 26. Qb4 {[%clk 0:01:11]} 26...
Rc8 {[%clk 0:00:29.4]} 27. Nb6 {[%clk 0:01:03.6]} 27... Qxb4 {[%clk 0:00:27.8]}
28. Bxb4 {[%clk 0:01:04.5]} 28... Be5+ {[%clk 0:00:25.1]} 29. g3 {[%clk
0:01:04.3]} 29... Rc2 {[%clk 0:00:25.2]} 30. Kg2 {[%clk 0:00:57.5]} 30... Rd8
{[%clk 0:00:22.1]} 31. Rb3 {[%clk 0:00:50.8]} 31... g5 {[%clk 0:00:20.4]} 32.
Ba3 {[%clk 0:00:45]} 32... Ne7 {[%clk 0:00:18.3]} 33. Rb2 {[%clk 0:00:44.2]}
33... Rc3 {[%clk 0:00:06.2]} 34. Bb4 {[%clk 0:00:43.9]} 34... Rc7 {[%clk
0:00:05.6]} 35. Rd2 {[%clk 0:00:38.1]} 35... Ng6 {[%clk 0:00:06.2]} 36. Ba3
{[%clk 0:00:35.5]} 36... h5 {[%clk 0:00:04.7]} 37. Bb2 {[%clk 0:00:35.6]} 37...
g4 {[%clk 0:00:05.1]} 38. Bxd4 {[%clk 0:00:35]} 38... Bxd4 {[%clk 0:00:05.3]}
39. Rxd4 {[%clk 0:00:35.3]} 39... Ne5 {[%clk 0:00:06]} 40. hxg4 {[%clk
0:00:32.5]} 40... hxg4 {[%clk 0:00:06.9]} 41. Rdd1 {[%clk 0:00:29.7]} 41... Kg7
{[%clk 0:00:07.1]} 42. Rc1 {[%clk 0:00:30.3]} 42... Rxc1 {[%clk 0:00:06.6]} 43.
Rxc1 {[%clk 0:00:31.2]} 43... Nf3 {[%clk 0:00:05.6]} 44. Kf1 {[%clk 0:00:30.6]}
44... Ne5 {[%clk 0:00:05.6]} 45. Ke2 {[%clk 0:00:30.9]} 45... Kf6 {[%clk
0:00:05.6]} 46. Rc8 {[%clk 0:00:29.3]} 46... Ke7 {[%clk 0:00:05.2]} 47. Rc7+
{[%clk 0:00:28.8]} 47... Kf6 {[%clk 0:00:05.2]} 48. Ra7 {[%clk 0:00:29.2]} 48...
Rh8 {[%clk 0:00:03.5]} 49. Rxa6 {[%clk 0:00:29.3]} 49... Rh1 {[%clk 0:00:03.6]}
50. Nc8 {[%clk 0:00:29.3]} 50... Nf3 {[%clk 0:00:03.7]} 51. Nxd6 {[%clk
0:00:16.5]} 51... Ke5 {[%clk 0:00:04.3]} 52. Nxf7+ {[%clk 0:00:16.8]} 52... Kd4
{[%clk 0:00:04.6]} 0-1

[Event "Late-Titled-Tuesday-Blitz-October-17-2023"]
[Site "Chess.com"]
[Date "2023.10.17"]
[Round "11"]
[White "ural58"]
[Black "KaydenTroffChess"]
[Result "1-0"]
[WhiteElo "2547"]
[BlackElo "2797"]
[TimeControl "180+1"]
[EndTime "16:01:56 PDT"]
[Termination "ural58 won by resignation"]

1. e4 {[%clk 0:03:00.9]} 1... c5 {[%clk 0:03:00.2]} 2. b3 {[%clk 0:02:59.5]}
2... a6 {[%clk 0:02:55.2]} 3. d4 {[%clk 0:02:58.7]} 3... cxd4 {[%clk 0:02:55.1]}
4. Qxd4 {[%clk 0:02:58.9]} 4... Nc6 {[%clk 0:02:55.5]} 5. Qd2 {[%clk 0:02:59.1]}
5... Nf6 {[%clk 0:02:53.9]} 6. Nc3 {[%clk 0:02:59.3]} 6... e6 {[%clk 0:02:54]}
7. Bb2 {[%clk 0:02:59.5]} 7... Bb4 {[%clk 0:02:53.3]} 8. f3 {[%clk 0:02:59.1]}
8... d5 {[%clk 0:02:53.2]} 9. a3 {[%clk 0:02:59.4]} 9... Bxc3 {[%clk 0:02:51.8]}
10. Bxc3 {[%clk 0:02:51.7]} 10... d4 {[%clk 0:02:41.7]} 11. Bb2 {[%clk
0:02:50.4]} 11... e5 {[%clk 0:02:42.1]} 12. c3 {[%clk 0:02:41.9]} 12... Be6
{[%clk 0:02:37.1]} 13. cxd4 {[%clk 0:02:39.1]} 13... exd4 {[%clk 0:02:38]} 14.
Ne2 {[%clk 0:02:25.4]} 14... Qb6 {[%clk 0:02:33.1]} 15. b4 {[%clk 0:02:17.3]}
15... Rd8 {[%clk 0:02:32.6]} 16. Nf4 {[%clk 0:02:16.5]} 16... O-O {[%clk
0:02:29.6]} 17. Nxe6 {[%clk 0:02:16.1]} 17... fxe6 {[%clk 0:02:28.4]} 18. Bc4
{[%clk 0:02:16.5]} 18... Ne5 {[%clk 0:02:28.6]} 19. Bb3 {[%clk 0:02:13.3]} 19...
Nxe4 {[%clk 0:01:54.1]} 20. fxe4 {[%clk 0:02:12.2]} 20... Rf3 {[%clk 0:01:54]}
21. gxf3 {[%clk 0:01:36]} 21... Nxf3+ {[%clk 0:01:53.8]} 22. Ke2 {[%clk
0:01:36.7]} 22... Nxd2 {[%clk 0:01:54.5]} 23. Kxd2 {[%clk 0:01:37.3]} 23... a5
{[%clk 0:01:53.2]} 24. Rac1 {[%clk 0:01:23.7]} 24... axb4 {[%clk 0:01:52.6]} 25.
a4 {[%clk 0:01:24.1]} 25... Kh8 {[%clk 0:01:53.1]} 26. Rc4 {[%clk 0:01:18.4]}
26... e5 {[%clk 0:01:41.2]} 27. Kc2 {[%clk 0:01:07.2]} 27... Qg6 {[%clk
0:01:40.6]} 28. Re1 {[%clk 0:01:02]} 28... d3+ {[%clk 0:01:40.1]} 29. Kb1 {[%clk
0:01:00.7]} 29... Qh5 {[%clk 0:01:30.8]} 30. Rd1 {[%clk 0:00:48.7]} 30... Qxh2
{[%clk 0:01:23.2]} 31. Rxd3 {[%clk 0:00:46.3]} 31... Rf8 {[%clk 0:01:14.6]} 32.
Rxb4 {[%clk 0:00:31.9]} 32... h5 {[%clk 0:01:06.6]} 33. Rxb7 {[%clk 0:00:28.6]}
33... h4 {[%clk 0:01:02.5]} 34. Rdd7 {[%clk 0:00:28.4]} 34... Rf1+ {[%clk
0:00:16.7]} 35. Ka2 {[%clk 0:00:28.4]} 35... Rg1 {[%clk 0:00:17]} 36. Rd8+
{[%clk 0:00:26.5]} 36... Kh7 {[%clk 0:00:17.3]} 37. Bg8+ {[%clk 0:00:26.5]}
37... Kh6 {[%clk 0:00:16.5]} 38. Rd6+ {[%clk 0:00:25.9]} 38... Kh5 {[%clk
0:00:16]} 39. Bf7+ {[%clk 0:00:26]} 39... Kg4 {[%clk 0:00:15.3]} 40. Rg6+ {[%clk
0:00:25.8]} 40... Kf4 {[%clk 0:00:15.5]} 41. Rxg1 {[%clk 0:00:16.4]} 41... Qxg1
{[%clk 0:00:16.4]} 42. Rb5 {[%clk 0:00:12.5]} 42... Qf2 {[%clk 0:00:14.1]} 43.
Rxe5 {[%clk 0:00:09.5]} 43... Qxb2+ {[%clk 0:00:13.1]} 44. Kxb2 {[%clk
0:00:09.1]} 44... Kxe5 {[%clk 0:00:14]} 45. Bh5 {[%clk 0:00:07.2]} 45... Kxe4
{[%clk 0:00:11.6]} 46. Bg4 {[%clk 0:00:06.7]} 46... Kf4 {[%clk 0:00:09]} 47. Bc8
{[%clk 0:00:06.5]} 47... g5 {[%clk 0:00:08.5]} 48. a5 {[%clk 0:00:06.6]} 48...
g4 {[%clk 0:00:09.1]} 49. a6 {[%clk 0:00:06.9]} 49... g3 {[%clk 0:00:08.7]} 50.
Bh3 {[%clk 0:00:05.8]} 50... g2 {[%clk 0:00:05.9]} 51. Bxg2 {[%clk 0:00:05.4]}
51... Kg3 {[%clk 0:00:06.8]} 52. Bd5 {[%clk 0:00:05.4]} 52... Kh2 {[%clk
0:00:07.7]} 53. a7 {[%clk 0:00:05.4]} 53... h3 {[%clk 0:00:08.5]} 54. a8=Q
{[%clk 0:00:05.6]} 54... Kg3 {[%clk 0:00:09.4]} 55. Qb8+ {[%clk 0:00:05.8]}
55... Kf2 {[%clk 0:00:09.5]} 56. Qh2+ {[%clk 0:00:05.6]} 56... Ke3 {[%clk
0:00:10.4]} 57. Qxh3+ {[%clk 0:00:05.9]} 57... Kd4 {[%clk 0:00:11.2]} 58. Qc3+
{[%clk 0:00:06.4]} 58... Kxd5 {[%clk 0:00:10.6]} 59. Kb3 {[%clk 0:00:07.1]} 1-0

[Event "Late-Titled-Tuesday-Blitz-October-17-2023"]
[Site "Chess.com"]
[Date "2023.10.17"]
[Round "11"]
[White "MikaelyanArman"]
[Black "Sanan_Sjugirov"]
[Result "1-0"]
[WhiteElo "2910"]
[BlackElo "2941"]
[TimeControl "180+1"]
[EndTime "16:02:02 PDT"]
[Termination "MikaelyanArman won on time"]

1. d4 {[%clk 0:03:00.9]} 1... Nf6 {[%clk 0:03:00]} 2. c4 {[%clk 0:03:01.2]} 2...
e6 {[%clk 0:03:00.7]} 3. Nf3 {[%clk 0:03:00.2]} 3... b6 {[%clk 0:03:01.3]} 4. g3
{[%clk 0:02:55.4]} 4... Bb7 {[%clk 0:03:01.9]} 5. Bg2 {[%clk 0:02:55.6]} 5...
Bb4+ {[%clk 0:03:02.6]} 6. Nbd2 {[%clk 0:02:53.8]} 6... O-O {[%clk 0:03:01.6]}
7. O-O {[%clk 0:02:53.7]} 7... a5 {[%clk 0:02:59.4]} 8. Qc2 {[%clk 0:02:24.5]}
8... Bxd2 {[%clk 0:02:57.3]} 9. Bxd2 {[%clk 0:02:22.8]} 9... Be4 {[%clk
0:02:57.2]} 10. Qb3 {[%clk 0:02:20.6]} 10... d6 {[%clk 0:02:57.5]} 11. Rac1
{[%clk 0:02:17.1]} 11... Nbd7 {[%clk 0:02:57.5]} 12. Rfd1 {[%clk 0:02:13.7]}
12... h6 {[%clk 0:02:56.7]} 13. Bh3 {[%clk 0:02:09.3]} 13... Qe7 {[%clk
0:02:56.3]} 14. Qe3 {[%clk 0:02:08.7]} 14... Rfe8 {[%clk 0:02:52.3]} 15. Bc3
{[%clk 0:02:08]} 15... Bb7 {[%clk 0:02:23]} 16. b3 {[%clk 0:02:07]} 16... a4
{[%clk 0:02:21.4]} 17. Nd2 {[%clk 0:01:54.5]} 17... axb3 {[%clk 0:02:20.8]} 18.
axb3 {[%clk 0:01:55.4]} 18... Ra2 {[%clk 0:02:17]} 19. Ra1 {[%clk 0:01:55]}
19... Rea8 {[%clk 0:02:17]} 20. Rxa2 {[%clk 0:01:55]} 20... Rxa2 {[%clk
0:02:17.9]} 21. Ra1 {[%clk 0:01:55.4]} 21... Rxa1+ {[%clk 0:02:18.2]} 22. Bxa1
{[%clk 0:01:56.3]} 22... Qe8 {[%clk 0:02:18.3]} 23. Bb2 {[%clk 0:01:44.4]} 23...
Qa8 {[%clk 0:02:18.2]} 24. Qd3 {[%clk 0:01:41.6]} 24... Ne4 {[%clk 0:02:12]} 25.
Nxe4 {[%clk 0:01:28.1]} 25... Bxe4 {[%clk 0:02:12.9]} 26. Qc3 {[%clk 0:01:28.5]}
26... Nf6 {[%clk 0:02:04.5]} 27. f3 {[%clk 0:01:27]} 27... Bb7 {[%clk
0:01:41.8]} 28. e4 {[%clk 0:01:27]} 28... Qa2 {[%clk 0:01:38.2]} 29. Bf1 {[%clk
0:01:22.7]} 29... Nd7 {[%clk 0:01:31.7]} 30. b4 {[%clk 0:01:16.4]} 30... Qa4
{[%clk 0:01:18.9]} 31. b5 {[%clk 0:01:11.2]} 31... e5 {[%clk 0:01:14.4]} 32.
dxe5 {[%clk 0:01:05.7]} 32... dxe5 {[%clk 0:01:14.3]} 33. Qd2 {[%clk 0:01:04.5]}
33... Bc8 {[%clk 0:01:06]} 34. Bh3 {[%clk 0:01:04.7]} 34... Qb3 {[%clk
0:00:43.6]} 35. Bf5 {[%clk 0:00:39.3]} 35... h5 {[%clk 0:00:15.7]} 36. Kg2
{[%clk 0:00:28.5]} 36... Qxc4 {[%clk 0:00:08.7]} 37. Ba3 {[%clk 0:00:26.1]}
37... Qxb5 {[%clk 0:00:07.5]} 38. Be7 {[%clk 0:00:14.6]} 38... Qc6 {[%clk
0:00:07.4]} 39. Qa2 {[%clk 0:00:12.7]} 39... b5 {[%clk 0:00:05.8]} 40. Qa7
{[%clk 0:00:11.4]} 40... g6 {[%clk 0:00:03.6]} 41. Bh3 {[%clk 0:00:08.8]} 41...
Kg7 {[%clk 0:00:04.1]} 42. Bg5 {[%clk 0:00:04]} 42... Nb6 {[%clk 0:00:03.5]} 43.
Bxc8 {[%clk 0:00:03.6]} 43... Nxc8 {[%clk 0:00:04.4]} 44. Qb8 {[%clk 0:00:04.1]}
44... Qd7 {[%clk 0:00:04.4]} 45. Qb7 {[%clk 0:00:03.6]} 45... Nd6 {[%clk
0:00:04]} 46. Qd5 {[%clk 0:00:03.9]} 46... Qe6 {[%clk 0:00:04.4]} 47. Qc5 {[%clk
0:00:03.4]} 47... Qa2+ {[%clk 0:00:04.4]} 48. Kh3 {[%clk 0:00:03.5]} 48... Qe6+
{[%clk 0:00:05.1]} 49. Kg2 {[%clk 0:00:04.2]} 49... b4 {[%clk 0:00:02.5]} 50.
Qxc7 {[%clk 0:00:04.2]} 50... b3 {[%clk 0:00:02.5]} 51. Qb6 {[%clk 0:00:04.8]}
51... f6 {[%clk 0:00:01.2]} 52. Be3 {[%clk 0:00:04.9]} 52... Kf7 {[%clk
0:00:01.6]} 53. Qc7+ {[%clk 0:00:05.2]} 53... Ke8 {[%clk 0:00:02]} 54. Qb8+
{[%clk 0:00:05.3]} 54... Kd7 {[%clk 0:00:02.4]} 55. Bc5 {[%clk 0:00:06]} 55...
Nc4 {[%clk 0:00:01]} 56. Qb7+ {[%clk 0:00:06.2]} 56... Kd8 {[%clk 0:00:01.6]}
57. Bb4 {[%clk 0:00:07]} 1-0

[Event "Late-Titled-Tuesday-Blitz-October-17-2023"]
[Site "Chess.com"]
[Date "2023.10.17"]
[Round "11"]
[White "elprimo2012mortis"]
[Black "TigrVShlyape"]
[Result "0-1"]
[WhiteElo "2695"]
[BlackElo "2818"]
[TimeControl "180+1"]
[EndTime "16:02:02 PDT"]
[Termination "TigrVShlyape won on time"]

1. e4 {[%clk 0:03:00.9]} 1... c5 {[%clk 0:02:54]} 2. Nf3 {[%clk 0:03:00.8]} 2...
e6 {[%clk 0:02:53.4]} 3. c3 {[%clk 0:03:00.7]} 3... Nf6 {[%clk 0:02:42.2]} 4. e5
{[%clk 0:03:00.4]} 4... Nd5 {[%clk 0:02:42.6]} 5. Bc4 {[%clk 0:03:01.1]} 5... b6
{[%clk 0:02:39.4]} 6. d4 {[%clk 0:02:58.6]} 6... Bb7 {[%clk 0:02:37.3]} 7. h4
{[%clk 0:02:58.1]} 7... h6 {[%clk 0:02:36.5]} 8. Rh3 {[%clk 0:02:58.1]} 8... Na6
{[%clk 0:02:25.2]} 9. Nbd2 {[%clk 0:02:53.5]} 9... Nac7 {[%clk 0:02:20.1]} 10.
Rg3 {[%clk 0:02:52.8]} 10... cxd4 {[%clk 0:02:08.9]} 11. cxd4 {[%clk 0:02:46.8]}
11... Ba6 {[%clk 0:02:05.3]} 12. Bxa6 {[%clk 0:02:43.8]} 12... Nxa6 {[%clk
0:02:05]} 13. Ne4 {[%clk 0:02:43.9]} 13... g6 {[%clk 0:01:56.4]} 14. Bd2 {[%clk
0:02:38.1]} 14... Rc8 {[%clk 0:01:52.8]} 15. Rc1 {[%clk 0:02:33.7]} 15... Rxc1
{[%clk 0:01:51.7]} 16. Qxc1 {[%clk 0:02:32.7]} 16... Qc7 {[%clk 0:01:52.1]} 17.
Qxc7 {[%clk 0:02:28]} 17... Naxc7 {[%clk 0:01:51.3]} 18. a4 {[%clk 0:01:51.7]}
18... Na6 {[%clk 0:01:46.3]} 19. Nd6+ {[%clk 0:01:49.5]} 19... Bxd6 {[%clk
0:01:44.8]} 20. exd6 {[%clk 0:01:50.4]} 20... Nb8 {[%clk 0:01:38.9]} 21. b4
{[%clk 0:01:39.6]} 21... Nc6 {[%clk 0:01:36.9]} 22. b5 {[%clk 0:01:39.1]} 22...
Nd8 {[%clk 0:01:37.1]} 23. Bc1 {[%clk 0:01:11.1]} 23... Nb7 {[%clk 0:01:30.9]}
24. Ba3 {[%clk 0:01:10.9]} 24... Rg8 {[%clk 0:01:28.6]} 25. Ne5 {[%clk 0:01:08]}
25... g5 {[%clk 0:01:27.5]} 26. hxg5 {[%clk 0:01:03.5]} 26... hxg5 {[%clk
0:01:27.4]} 27. Rh3 {[%clk 0:00:58.3]} 27... f6 {[%clk 0:01:25.5]} 28. Ng4
{[%clk 0:00:36.3]} 28... Na5 {[%clk 0:01:20.1]} 29. Rh7 {[%clk 0:00:32]} 29...
Nc4 {[%clk 0:01:18.4]} 30. Bb4 {[%clk 0:00:28.1]} 30... Rf8 {[%clk 0:01:17.9]}
31. Bc5 {[%clk 0:00:19]} 31... bxc5 {[%clk 0:01:08.3]} 32. dxc5 {[%clk
0:00:19.9]} 32... Kd8 {[%clk 0:01:02.1]} 33. c6 {[%clk 0:00:17]} 33... Ndb6
{[%clk 0:00:57.4]} 34. Nxf6 {[%clk 0:00:12.9]} 34... Nxd6 {[%clk 0:00:52.7]} 35.
Nxd7 {[%clk 0:00:12.9]} 35... Rf7 {[%clk 0:00:50.1]} 36. Rh8+ {[%clk 0:00:12.7]}
36... Kc7 {[%clk 0:00:50.4]} 37. Nc5 {[%clk 0:00:12.1]} 37... Ndc4 {[%clk
0:00:46.7]} 38. Nxe6+ {[%clk 0:00:11.1]} 38... Kd6 {[%clk 0:00:47]} 39. Nxg5
{[%clk 0:00:11.8]} 39... Re7+ {[%clk 0:00:47]} 40. Kf1 {[%clk 0:00:11.6]} 40...
Nxa4 {[%clk 0:00:45.7]} 41. f3 {[%clk 0:00:09.6]} 41... Nc3 {[%clk 0:00:45.6]}
42. Rd8+ {[%clk 0:00:07.1]} 42... Kc7 {[%clk 0:00:44.5]} 43. Ra8 {[%clk
0:00:06.2]} 43... Nxb5 {[%clk 0:00:43.8]} 44. Ne4 {[%clk 0:00:03.9]} 44... Nb6
{[%clk 0:00:41.8]} 45. Rf8 {[%clk 0:00:03.1]} 45... Kxc6 {[%clk 0:00:42.1]} 46.
g4 {[%clk 0:00:03.5]} 46... Nd5 {[%clk 0:00:41.6]} 47. g5 {[%clk 0:00:03.6]}
47... Nd4 {[%clk 0:00:39.4]} 48. Kf2 {[%clk 0:00:03]} 48... a5 {[%clk
0:00:37.4]} 49. Ra8 {[%clk 0:00:03.1]} 49... Kb6 {[%clk 0:00:31.1]} 50. Kg3
{[%clk 0:00:02.6]} 50... Nf5+ {[%clk 0:00:29.8]} 51. Kg4 {[%clk 0:00:02.8]}
51... Nfe3+ {[%clk 0:00:29.6]} 52. Kg3 {[%clk 0:00:02.6]} 52... Kb5 {[%clk
0:00:27.9]} 53. Nd6+ {[%clk 0:00:02.6]} 53... Kb4 {[%clk 0:00:27.3]} 54. g6
{[%clk 0:00:02.5]} 54... Re6 {[%clk 0:00:26.1]} 55. Rb8+ {[%clk 0:00:02.7]}
55... Ka4 {[%clk 0:00:26.1]} 56. g7 {[%clk 0:00:02.4]} 56... Rg6+ {[%clk
0:00:26.4]} 57. Kf2 {[%clk 0:00:02.6]} 57... Rxg7 {[%clk 0:00:26.7]} 58. Ne4
{[%clk 0:00:02.2]} 58... Rc7 {[%clk 0:00:27.3]} 59. Ke2 {[%clk 0:00:02.3]} 59...
Ka3 {[%clk 0:00:26.5]} 60. Kd3 {[%clk 0:00:02.7]} 60... a4 {[%clk 0:00:24.6]}
61. f4 {[%clk 0:00:03.3]} 61... Nc4 {[%clk 0:00:23.1]} 62. f5 {[%clk 0:00:02]}
62... Nb4+ {[%clk 0:00:21.3]} 63. Kd4 {[%clk 0:00:02]} 63... Nc6+ {[%clk
0:00:21.5]} 0-1